fUSD/lending_fUSD_20240619
["ID","MTS","AMOUNT","RATE_DAILY","PERIOD"]
[329888486,1718796634691,-500.0,0.00013698,2]
[329888487,1718796634706,-1186.13,0.00013698,2]
[329888488,1718796634717,-1849.85,0.00013698,2]
[329888489,1718796634729,-500.0,0.00013698,2]
[329888490,1718796634744,-1004.72,0.00013698,2]
[329888491,1718796634757,-500.0,0.00013698,2]
[329888492,1718796634771,-500.0,0.00013698,2]
[329888493,1718796634785,-996.6,0.00013698,2]
[329888494,1718796634800,-500.0,0.00013698,2]
[329888495,1718796634815,-500.0,0.00013698,2]
[329888496,1718796634828,-500.0,0.00013698,2]
[329888497,1718796634842,-500.0,0.00013698,2]
[329888498,1718796634852,-500.0,0.00013698,2]
[329888499,1718796634863,-500.0,0.00013698,2]
[329888500,1718796634875,-500.0,0.00013698,2]
[329888501,1718796634888,-1051.27,0.00013698,2]
[329888502,1718796634902,-1519.09,0.00013698,2]
[329888503,1718796634916,-1378.35,0.00013698,2]
[329888504,1718796634930,-1550.35,0.00013698,2]
[329888505,1718796634942,-500.0,0.00013698,2]
[329888506,1718796634955,-500.0,0.00013698,2]
[329888507,1718796634967,-181.77816936,0.00013698,2]
[329888508,1718796634982,-500.0,0.00013698,2]
[329888509,1718796634995,-500.0,0.00013698,2]
[329888510,1718796635007,-2030.28,0.00013698,2]
[329888511,1718796635018,-500.0,0.00013698,2]
[329888512,1718796635030,-1762.14,0.00013698,2]
[329888513,1718796635043,-500.0,0.00013698,2]
[329888514,1718796635054,-500.0,0.00013698,2]
[329888515,1718796635066,-500.0,0.00013698,2]
[329888516,1718796635078,-500.0,0.00013698,2]
[329888517,1718796635090,-678.5,0.00013698,2]
[329888518,1718796635103,-913.27,0.00013698,2]
[329888519,1718796635116,-943.77,0.00013698,2]
[329888520,1718796635129,-1362.34,0.00013698,2]
[329888521,1718796635148,-1046.12,0.00013698,2]
[329888522,1718796635160,-1551.56,0.00013698,2]
[329888523,1718796635172,-500.0,0.00013698,2]
[329888524,1718796635185,-500.0,0.00013698,2]
[329888525,1718796635197,-759.73,0.00013698,2]
[329888526,1718796635210,-1554.19,0.00013698,2]
[329888527,1718796635222,-500.0,0.00013698,2]
[329888528,1718796635234,-1057.95,0.00013698,2]
[329888529,1718796635250,-500.0,0.00013698,2]
[329888530,1718796635262,-677.35,0.00013698,2]
[329888531,1718796635273,-500.0,0.00013698,2]
[329888532,1718796635285,-1678.82,0.00013698,2]
[329888533,1718796635297,-500.0,0.00013698,2]
[329888534,1718796635310,-500.0,0.00013698,2]
[329888535,1718796635322,-1967.42,0.00013698,2]
[329888536,1718796635334,-500.0,0.00013698,2]
[329888537,1718796635348,-1057.99,0.00013698,2]
[329888538,1718796635360,-636.44,0.00013698,2]
[329888539,1718796635372,-679.36,0.00013698,2]
[329888540,1718796635384,-500.0,0.00013698,2]
[329888541,1718796635396,-500.0,0.00013698,2]
[329888542,1718796635408,-500.0,0.00013698,2]
[329888543,1718796635420,-754.87,0.00013698,2]
[329888544,1718796635433,-1723.44,0.00013698,2]
[329888545,1718796635446,-546.57,0.00013698,2]
[329888546,1718796635458,-1810.55,0.00013698,2]
[329888547,1718796635470,-500.0,0.00013698,2]
[329888548,1718796635483,-504.5,0.00013698,2]
[329888549,1718796635499,-972.36,0.00013698,2]
[329888550,1718796635512,-500.0,0.00013698,2]
[329888551,1718796635525,-500.0,0.00013698,2]
[329888552,1718796635537,-693.97,0.00013698,2]
[329888553,1718796635549,-500.0,0.00013698,2]
[329888554,1718796635561,-1239.98,0.00013698,2]
[329888555,1718796635573,-1746.79,0.00013698,2]
[329888556,1718796635584,-513.53,0.00013698,2]
[329888557,1718796635596,-500.0,0.00013698,2]
[329888558,1718796635608,-500.0,0.00013698,2]
[329888559,1718796635620,-500.0,0.00013698,2]
[329888560,1718796635631,-1668.24,0.00013698,2]
[329888561,1718796635643,-1099.18,0.00013698,2]
[329888562,1718796635655,-907.96,0.00013698,2]
[329888563,1718796635667,-993.58,0.00013698,2]
[329888564,1718796635679,-2206.87,0.00013698,2]
[329888565,1718796635694,-1083.24,0.00013698,2]
[329888566,1718796635706,-500.0,0.00013698,2]
[329888567,1718796635718,-731.36,0.00013698,2]
[329888568,1718796635731,-702.32,0.00013698,2]
[329888569,1718796635743,-500.0,0.00013698,2]
[329888570,1718796635755,-500.0,0.00013698,2]
[329888571,1718796635768,-500.0,0.00013698,2]
[329888572,1718796635780,-500.0,0.00013698,2]
[329888573,1718796635792,-719.66,0.00013698,2]
[329888574,1718796635804,-1539.79,0.00013698,2]
[329888575,1718796635817,-897.13,0.00013698,2]
[329888576,1718796635829,-500.0,0.00013698,2]
[329888577,1718796635840,-500.0,0.00013698,2]
[329888578,1718796635852,-500.0,0.00013698,2]
[329888579,1718796635867,-1791.25,0.00013698,2]
[329888580,1718796635879,-500.0,0.00013698,2]
[329888581,1718796635891,-969.79,0.00013698,2]
[329888582,1718796635903,-1054.47,0.00013698,2]
[329888583,1718796635916,-1082.87,0.00013698,2]
[329888584,1718796635927,-1792.5,0.00013698,2]
[329888585,1718796635939,-500.0,0.00013698,2]
[329888586,1718796635951,-894.55,0.00013698,2]
[329888587,1718796635963,-1328.61,0.00013698,2]
[329888588,1718796635975,-500.0,0.00013698,2]
[329888589,1718796635988,-532.06,0.00013698,2]
[329888590,1718796636000,-894.44,0.00013698,2]
[329888591,1718796636013,-871.85,0.00013698,2]
[329888592,1718796636026,-500.0,0.00013698,2]
[329888593,1718796636039,-1346.09,0.00013698,2]
[329888594,1718796636051,-1325.62,0.00013698,2]
[329888595,1718796636063,-500.0,0.00013698,2]
[329888596,1718796636075,-500.0,0.00013698,2]
[329888597,1718796636087,-896.2,0.00013698,2]
[329888598,1718796636099,-883.59,0.00013698,2]
[329888599,1718796636112,-500.0,0.00013698,2]
[329888600,1718796636124,-500.0,0.00013698,2]
[329888601,1718796636136,-536.92,0.00013698,2]
[329888602,1718796636147,-661.55,0.00013698,2]
[329888603,1718796636159,-1106.13,0.00013698,2]
[329888604,1718796636172,-500.0,0.00013698,2]
[329888605,1718796636184,-958.33,0.00013698,2]
[329888606,1718796636195,-1204.53,0.00013698,2]
[329888607,1718796636207,-1076.92,0.00013698,2]
[329888608,1718796636220,-500.0,0.00013698,2]
[329888609,1718796636232,-500.0,0.00013698,2]
[329888610,1718796636245,-1608.44,0.00013698,2]
[329888611,1718796636257,-560.76,0.00013698,2]
[329888612,1718796636268,-1529.88,0.00013698,2]
[329888613,1718796636280,-500.0,0.00013698,2]
[329888614,1718796636292,-500.0,0.00013698,2]
[329888615,1718796636303,-946.78,0.00013698,2]
[329888616,1718796636316,-671.59,0.00013698,2]
[329888617,1718796636329,-927.91,0.00013698,2]
[329888618,1718796636340,-621.15,0.00013698,2]
[329888619,1718796636354,-897.48,0.00013698,2]
[329888620,1718796636366,-500.0,0.00013698,2]
[329888621,1718796636377,-517.48,0.00013698,2]
[329888622,1718796636389,-1406.25,0.00013698,2]
[329888623,1718796636400,-1061.51,0.00013698,2]
[329888624,1718796636411,-759.85,0.00013698,2]
[329888625,1718796636423,-641.19,0.00013698,2]
[329888626,1718796636434,-541.8,0.00013698,2]
[329888627,1718796636446,-940.72,0.00013698,2]
[329888628,1718796636458,-1022.56,0.00013698,2]
[329888629,1718796636469,-500.0,0.00013698,2]
[329888630,1718796636481,-500.0,0.00013698,2]
[329888631,1718796636494,-500.0,0.00013698,2]
[329888632,1718796636505,-1284.86,0.00013698,2]
[329888633,1718796636516,-615.92,0.00013698,2]
[329888634,1718796636528,-693.22,0.00013698,2]
[329888635,1718796636539,-500.0,0.00013698,2]
[329888636,1718796636551,-587.8,0.00013698,2]
[329888637,1718796636563,-859.53,0.00013698,2]
[329888638,1718796636574,-500.0,0.00013698,2]
[329888639,1718796636586,-500.0,0.00013698,2]
[329888640,1718796636598,-500.0,0.00013698,2]
[329888641,1718796636610,-500.0,0.00013698,2]
[329888642,1718796636622,-764.5,0.00013698,2]
[329888643,1718796636633,-500.0,0.00013698,2]
[329888644,1718796636646,-1519.29,0.00013698,2]
[329888645,1718796636657,-804.08,0.00013698,2]
[329888646,1718796636669,-911.74,0.00013698,2]
[329888647,1718796636681,-500.0,0.00013698,2]
[329888648,1718796636698,-500.0,0.00013698,2]
[329888649,1718796636709,-500.0,0.00013698,2]
[329888650,1718796636721,-500.0,0.00013698,2]
[329888651,1718796636734,-1095.04,0.00013698,2]
[329888652,1718796636745,-2187.59,0.00013698,2]
[329888653,1718796636757,-857.56,0.00013698,2]
[329888654,1718796636769,-1165.58,0.00013698,2]
[329888655,1718796636783,-500.0,0.00013698,2]
[329888656,1718796636795,-765.77,0.00013698,2]
[329888657,1718796636807,-858.69,0.00013698,2]
[329888658,1718796636819,-1174.94,0.00013698,2]
[329888659,1718796636830,-1763.54,0.00013698,2]
[329888660,1718796636842,-1430.79,0.00013698,2]
[329888661,1718796636854,-658.38,0.00013698,2]
[329888662,1718796636865,-740.08,0.00013698,2]
[329888663,1718796636877,-500.0,0.00013698,2]
[329888664,1718796636888,-1025.94,0.00013698,2]
[329888665,1718796636899,-1671.06,0.00013698,2]
[329888666,1718796636910,-500.0,0.00013698,2]
[329888667,1718796636922,-1229.34,0.00013698,2]
[329888668,1718796636934,-1643.01,0.00013698,2]
[329888669,1718796636945,-585.49,0.00013698,2]
[329888670,1718796636957,-2052.5,0.00013698,2]
[329888671,1718796636969,-611.52,0.00013698,2]
[329888672,1718796636981,-687.77,0.00013698,2]
[329888673,1718796636995,-1602.52,0.00013698,2]
[329888674,1718796637007,-963.55,0.00013698,2]
[329888675,1718796637020,-500.0,0.00013698,2]
[329888676,1718796637032,-978.49,0.00013698,2]
[329888677,1718796637044,-809.54,0.00013698,2]
[329888678,1718796637056,-500.0,0.00013698,2]
[329888679,1718796637068,-934.31,0.00013698,2]
[329888680,1718796637079,-500.0,0.00013698,2]
[329888681,1718796637090,-551.88,0.00013698,2]
[329888682,1718796637102,-1240.57,0.00013698,2]
[329888683,1718796637114,-612.03459162,0.00013698,2]
[329888684,1718796637126,-959.29,0.00013698,2]
[329888685,1718796637138,-500.0,0.00013698,2]
[329888686,1718796637149,-500.0,0.00013698,2]
[329888687,1718796637161,-567.37,0.00013698,2]
[329888688,1718796637172,-1642.65,0.00013698,2]
[329888689,1718796637184,-500.0,0.00013698,2]
[329888690,1718796637196,-1127.47,0.00013698,2]
[329888691,1718796637208,-923.16,0.00013698,2]
[329888692,1718796637219,-500.0,0.00013698,2]
[329888693,1718796637231,-500.0,0.00013698,2]
[329888694,1718796637243,-500.0,0.00013698,2]
[329888695,1718796637254,-500.0,0.00013698,2]
[329888696,1718796637266,-1111.13,0.00013698,2]
[329888697,1718796637278,-953.27,0.00013698,2]
[329888698,1718796637290,-500.0,0.00013698,2]
[329888699,1718796637302,-1027.72,0.00013698,2]
[329888700,1718796637314,-1461.03,0.00013698,2]
[329888701,1718796637325,-500.0,0.00013698,2]
[329888702,1718796637336,-1751.52,0.00013698,2]
[329888703,1718796637349,-1445.67,0.00013698,2]
[329888704,1718796637361,-979.75,0.00013698,2]
[329888705,1718796637373,-500.0,0.00013698,2]
[329888706,1718796637384,-500.0,0.00013698,2]
[329888707,1718796637395,-500.0,0.00013698,2]
[329888708,1718796637407,-500.0,0.00013698,2]
[329888709,1718796637419,-500.0,0.00013698,2]
[329888710,1718796637430,-500.0,0.00013698,2]
[329888711,1718796637443,-500.0,0.00013698,2]
[329888712,1718796637455,-536.32,0.00013698,2]
[329888713,1718796637466,-1693.26,0.00013698,2]
[329888714,1718796637478,-454.93,0.00013698,2]
[329888715,1718796637489,-500.0,0.00013698,2]
[329888716,1718796637504,-500.0,0.00013698,2]
[329888717,1718796637517,-500.0,0.00013698,2]
[329888718,1718796637529,-500.0,0.00013698,2]
[329888719,1718796637541,-677.21,0.00013698,2]
[329888720,1718796637554,-500.0,0.00013698,2]
[329888721,1718796637565,-1232.38,0.00013698,2]
[329888722,1718796637578,-3569.48,0.00013698,2]
[329888723,1718796637590,-1434.42,0.00013698,2]
[329888724,1718796637602,-681.84,0.00013698,2]
[329888725,1718796637614,-532.7,0.00013698,2]
[329888726,1718796637626,-1437.7,0.00013698,2]
[329888727,1718796637638,-500.0,0.00013698,2]
[329888728,1718796637650,-703.56,0.00013698,2]
[329888729,1718796637662,-500.0,0.00013698,2]
[329888730,1718796637673,-1109.24,0.00013698,2]
[329888731,1718796637685,-500.0,0.00013698,2]
[329888732,1718796637697,-500.0,0.00013698,2]
[329888733,1718796637710,-1043.76,0.00013698,2]
[329888734,1718796637721,-500.0,0.00013698,2]
[329888735,1718796637733,-500.0,0.00013698,2]
[329888736,1718796637750,-500.0,0.00013698,2]
[329888737,1718796637762,-500.0,0.00013698,2]
[329888738,1718796637774,-500.0,0.00013698,2]
[329888739,1718796637787,-2005.03,0.00013698,2]
[329888740,1718796637799,-500.0,0.00013698,2]
[329888741,1718796637811,-487.45843498,0.00013698,2]
[329888742,1718796637823,-500.0,0.00013698,2]
[329888743,1718796637834,-1449.52,0.00013698,2]
[329888744,1718796637846,-2018.47,0.00013698,2]
[329888745,1718796637857,-707.19,0.00013698,2]
[329888746,1718796637870,-551.23,0.00013698,2]
[329888747,1718796637881,-1160.24,0.00013698,2]
[329888748,1718796637892,-2743.37,0.00013698,2]
[329888749,1718796637904,-500.0,0.00013698,2]
[329888750,1718796637915,-1448.54,0.00013698,2]
[329888751,1718796637927,-985.04,0.00013698,2]
[329888752,1718796637939,-500.0,0.00013698,2]
[329888753,1718796637951,-1576.21,0.00013698,2]
[329888754,1718796637962,-620.19,0.00013698,2]
[329888755,1718796637973,-809.33,0.00013698,2]
[329888756,1718796637985,-500.0,0.00013698,2]
[329888757,1718796638000,-770.73,0.00013698,2]
[329888758,1718796638012,-1597.49,0.00013698,2]
[329888759,1718796638023,-12158.14,0.00013698,2]
[329888760,1718796638035,-500.0,0.00013698,2]
[329888761,1718796638046,-7734.39,0.00013698,2]
[329888762,1718796638058,-1927.98,0.00013698,2]
[329888763,1718796638070,-1287.04,0.00013698,2]
[329888764,1718796638082,-1525.49,0.00013698,2]
[329888765,1718796638093,-3735.3,0.00013698,2]
[329888766,1718796638104,-500.0,0.00013698,2]
[329888767,1718796638116,-1282.25,0.00013698,2]
[329888768,1718796638126,-666.44,0.00013698,2]
[329888769,1718796638138,-2501.48,0.00013698,2]
[329888770,1718796638150,-6498.37,0.00013698,2]
[329888771,1718796638161,-946.10305998,0.00013698,2]
[329888797,1718796641370,-248.98694002,0.00013698,2]
[329888798,1718796641380,-119.86305976,0.00013698,2]
[329888808,1718796641536,-3333.03694024,0.00013698,2]
[329888811,1718796641546,-515.18,0.00013698,2]
[329888835,1718796641824,-500.0,0.00013698,2]
[329888836,1718796641845,-3477.22,0.00013698,2]
[329888837,1718796641856,-329.56305976,0.00013698,2]
[329888838,1718796642021,-447.01694024,0.00013698,2]
[329888839,1718796642031,-500.0,0.00013698,2]
[329888840,1718796642041,-2317.17,0.00013698,2]
[329888841,1718796642052,-1357.14,0.00013698,2]
[329888842,1718796642062,-1036.94,0.00013698,2]
[329888843,1718796642072,-799.94,0.00013698,2]
[329888844,1718796642081,-137.29273176,0.00013698,2]
[329888845,1718796642380,-1047.62162507,0.00013698,2]
[329888846,1718796642392,-1637.7,0.00013698,2]
[329888847,1718796642403,-278.25660024,0.00013698,2]
[329888848,1718796642445,-1348.29904293,0.00013698,2]
[329888849,1718796642455,-617.37,0.00013698,2]
[329888850,1718796642465,-2403.56,0.00013698,2]
[329888851,1718796642475,-1029.68,0.00013698,2]
[329888852,1718796642485,-500.0,0.00013698,2]
[329888853,1718796642496,-500.0,0.00013698,2]
[329888854,1718796642506,-949.86,0.00013698,2]
[329888855,1718796642515,-1022.7,0.00013698,2]
[329888856,1718796642525,-571.91918773,0.00013698,2]
[329888857,1718796642534,-500.0,0.00013698,2]
[329888858,1718796642544,-500.0,0.00013698,2]
[329888859,1718796642553,-500.0,0.00013698,2]
[329888860,1718796642562,-2685.75533576,0.00013698,2]
[329888908,1718796645338,-238.98035017,0.00013697,2]
[329888909,1718796645349,-91.66382152,0.00013698,2]
[329888915,1718796646828,-312.07939484,0.00013697,2]
[329888917,1718796646837,-678.61811441,0.00013698,2]
[329888926,1718796646949,-533.5772244,0.00013698,2]
[329888927,1718796646961,-3133.88083967,0.00013698,2]
[329888928,1718796646971,-500.0,0.00013698,2]
[329888929,1718796646980,-12305.08,0.00013698,2]
[329888930,1718796646991,-985.27,0.00013698,2]
[329888931,1718796647003,-39604.4,0.00013698,2]
[329888932,1718796647013,-500.0,0.00013698,2]
[329888933,1718796647023,-1201.34,0.00013698,2]
[329888934,1718796647033,-500.0,0.00013698,2]
[329888935,1718796647043,-500.0,0.00013698,2]
[329888936,1718796647053,-1995.88,0.00013698,2]
[329888937,1718796647062,-500.0,0.00013698,2]
[329888938,1718796647072,-2028.38,0.00013698,2]
[329888939,1718796647083,-2702.23,0.00013698,2]
[329888940,1718796647094,-1930.99,0.00013698,2]
[329888941,1718796647104,-1261.62,0.00013698,2]
[329888942,1718796647114,-716.43,0.00013698,2]
[329888943,1718796647123,-2170.25,0.00013698,2]
[329888944,1718796647133,-1415.71,0.00013698,2]
[329888945,1718796647143,-1287.8,0.00013698,2]
[329888946,1718796647152,-2011.59,0.00013698,2]
[329888947,1718796647162,-1744.57,0.00013698,2]
[329888948,1718796647172,-960.95,0.00013698,2]
[329888949,1718796647183,-10086.96,0.00013698,2]
[329888950,1718796647193,-500.0,0.00013698,2]
[329888951,1718796647202,-500.0,0.00013698,2]
[329888952,1718796647212,-500.0,0.00013698,2]
[329888953,1718796647222,-500.0,0.00013698,2]
[329888954,1718796647232,-736.9,0.00013698,2]
[329888955,1718796647242,-625.61,0.00013698,2]
[329888956,1718796647253,-740.28,0.00013698,2]
[329888957,1718796647263,-1083.9,0.00013698,2]
[329888958,1718796647272,-3898.97,0.00013698,2]
[329888959,1718796647282,-1076.76,0.00013698,2]
[329888960,1718796647292,-557.36,0.00013698,2]
[329888961,1718796647302,-3458.38,0.00013698,2]
[329888962,1718796647312,-500.0,0.00013698,2]
[329888963,1718796647323,-1936.37,0.00013698,2]
[329888964,1718796647333,-846.18,0.00013698,2]
[329888965,1718796647344,-500.0,0.00013698,2]
[329888966,1718796647354,-500.0,0.00013698,2]
[329888967,1718796647364,-500.0,0.00013698,2]
[329888968,1718796647374,-1742.84,0.00013698,2]
[329888969,1718796647384,-4780.38,0.00013698,2]
[329888970,1718796647393,-500.0,0.00013698,2]
[329888971,1718796647403,-7467.74,0.00013698,2]
[329888972,1718796647413,-15608.98,0.00013698,2]
[329888973,1718796647424,-703.72,0.00013698,2]
[329888974,1718796647434,-1561.81,0.00013698,2]
[329888975,1718796647444,-755.93,0.00013698,2]
[329888976,1718796647454,-500.0,0.00013698,2]
[329888977,1718796647464,-2710.49,0.00013698,2]
[329888978,1718796647474,-500.0,0.00013698,2]
[329888979,1718796647484,-500.0,0.00013698,2]
[329888980,1718796647493,-500.0,0.00013698,2]
[329888981,1718796647503,-1286.18,0.00013698,2]
[329888982,1718796647513,-547.57,0.00013698,2]
[329888983,1718796647523,-3823.58,0.00013698,2]
[329888984,1718796647532,-1532.4,0.00013698,2]
[329888985,1718796647541,-500.0,0.00013698,2]
[329888986,1718796647551,-500.0,0.00013698,2]
[329888987,1718796647560,-26860.32,0.00013698,2]
[329888988,1718796647570,-500.0,0.00013698,2]
[329888989,1718796647580,-575.04,0.00013698,2]
[329888990,1718796647589,-2062.75,0.00013698,2]
[329888991,1718796647599,-1541.13,0.00013698,2]
[329888992,1718796647609,-1529.46,0.00013698,2]
[329888993,1718796647619,-500.0,0.00013698,2]
[329888994,1718796647628,-1167.15,0.00013698,2]
[329888995,1718796647638,-998.46,0.00013698,2]
[329888996,1718796647648,-5245.14,0.00013698,2]
[329888997,1718796647658,-500.0,0.00013698,2]
[329888998,1718796647667,-500.0,0.00013698,2]
[329888999,1718796647677,-552.93,0.00013698,2]
[329889000,1718796647688,-500.0,0.00013698,2]
[329889001,1718796647699,-2970.96,0.00013698,2]
[329889002,1718796647713,-773.87,0.00013698,2]
[329889003,1718796647722,-4924.0,0.00013698,2]
[329889004,1718796647732,-500.0,0.00013698,2]
[329889005,1718796647741,-715.02,0.00013698,2]
[329889006,1718796647750,-893.37,0.00013698,2]
[329889007,1718796647760,-500.0,0.00013698,2]
[329889008,1718796647770,-19220.07,0.00013698,2]
[329889009,1718796647782,-788.04,0.00013698,2]
[329889010,1718796647792,-654.79,0.00013698,2]
[329889011,1718796647802,-984.55,0.00013698,2]
[329889012,1718796647812,-500.0,0.00013698,2]
[329889013,1718796647822,-2200.81,0.00013698,2]
[329889014,1718796647832,-913.37,0.00013698,2]
[329889015,1718796647842,-1115.13,0.00013698,2]
[329889016,1718796647852,-17615.84,0.00013698,2]
[329889017,1718796647862,-2230.43,0.00013698,2]
[329889018,1718796647871,-500.0,0.00013698,2]
[329889019,1718796647881,-500.0,0.00013698,2]
[329889020,1718796647891,-2272.2,0.00013698,2]
[329889021,1718796647900,-500.0,0.00013698,2]
[329889022,1718796647911,-5000.0,0.00013698,2]
[329889023,1718796647921,-650.52,0.00013698,2]
[329889024,1718796647930,-2589.61,0.00013698,2]
[329889025,1718796647940,-1206.97,0.00013698,2]
[329889026,1718796647950,-554.32,0.00013698,2]
[329889027,1718796647960,-1719.77,0.00013698,2]
[329889028,1718796647970,-7132.62,0.00013698,2]
[329889029,1718796647980,-500.0,0.00013698,2]
[329889030,1718796647990,-1402.29,0.00013698,2]
[329889031,1718796648000,-500.0,0.00013698,2]
[329889032,1718796648010,-1907.38,0.00013698,2]
[329889033,1718796648020,-4396.06,0.00013698,2]
[329889034,1718796648030,-1983.54,0.00013698,2]
[329889035,1718796648040,-1062.42,0.00013698,2]
[329889036,1718796648050,-575.89932474,0.00013698,2]
[329889037,1718796648060,-500.0,0.00013698,2]
[329889038,1718796648069,-1543.21,0.00013698,2]
[329889039,1718796648080,-5732.97,0.00013698,2]
[329889040,1718796648089,-1337.85,0.00013698,2]
[329889041,1718796648099,-789.38,0.00013698,2]
[329889042,1718796648109,-25081.73,0.00013698,2]
[329889043,1718796648119,-500.0,0.00013698,2]
[329889044,1718796648128,-500.0,0.00013698,2]
[329889045,1718796648138,-1821.39,0.00013698,2]
[329889046,1718796648147,-636.28,0.00013698,2]
[329889047,1718796648157,-500.0,0.00013698,2]
[329889048,1718796648167,-1352.12,0.00013698,2]
[329889049,1718796648177,-500.0,0.00013698,2]
[329889050,1718796648187,-2064.14,0.00013698,2]
[329889051,1718796648196,-500.0,0.00013698,2]
[329889052,1718796648207,-500.0,0.00013698,2]
[329889053,1718796648218,-1900.74,0.00013698,2]
[329889054,1718796648228,-2609.28,0.00013698,2]
[329889055,1718796648238,-500.0,0.00013698,2]
[329889056,1718796648248,-500.0,0.00013698,2]
[329889057,1718796648258,-1020.97,0.00013698,2]
[329889058,1718796648268,-2314.38,0.00013698,2]
[329889059,1718796648278,-2367.68,0.00013698,2]
[329889060,1718796648288,-1187.05,0.00013698,2]
[329889061,1718796648297,-889.35,0.00013698,2]
[329889062,1718796648307,-500.0,0.00013698,2]
[329889063,1718796648317,-767.84,0.00013698,2]
[329889064,1718796648327,-904.13,0.00013698,2]
[329889065,1718796648337,-500.0,0.00013698,2]
[329889066,1718796648348,-4509.87,0.00013698,2]
[329889067,1718796648358,-562.24,0.00013698,2]
[329889068,1718796648369,-8252.07,0.00013698,2]
[329889069,1718796648379,-500.0,0.00013698,2]
[329889070,1718796648634,-906.36,0.00013698,2]
[329889071,1718796648653,-2919.17,0.00013698,2]
[329889072,1718796648664,-500.0,0.00013698,2]
[329889073,1718796648674,-494.50216154,0.00013698,2]
[329889074,1718796648684,-3046.19,0.00013698,2]
[329889075,1718796648699,-500.0,0.00013698,2]
[329889076,1718796648709,-1503.02,0.00013698,2]
[329889077,1718796648719,-2877.27,0.00013698,2]
[329889078,1718796648728,-5502.7,0.00013698,2]
[329889079,1718796648739,-627.13,0.00013698,2]
[329889080,1718796648748,-548.83,0.00013698,2]
[329889081,1718796648757,-2453.85,0.00013698,2]
[329889082,1718796648767,-4830.49,0.00013698,2]
[329889083,1718796648776,-5665.48286711,0.00013698,2]
[329889086,1718796662152,160.51735368,0.00025,60]
[329889087,1718796666555,-842.75,0.00012206,2]
[329889088,1718796711851,804.60753196,0.00012434,2]
[329889093,1718797006653,1486.12028468,0.00026,90]
[329889094,1718797219321,399.55,0.00010757,2]
[329889114,1718797638121,150.0,0.00010948,2]
[329889139,1718797832131,-155.0,0.00012203,2]
[329889140,1718797832141,-155.0,0.00012204,2]
[329889141,1718797832151,-482.5901174,0.00012205,2]
[329889142,1718797832166,-450.0,0.00012205,2]
[329889143,1718797832180,-329.90696897,0.00012205,2]
[329889144,1718797832190,-165.51,0.00012206,2]
[329889145,1718797832200,-250.0,0.00012206,2]
[329889146,1718797832210,-80.58303044,0.00012307,2]
[329889147,1718797832234,-732.91429086,0.00012307,2]
[329889148,1718797832255,-112.7326787,0.00012307,2]
[329889149,1718797832264,-496.94732128,0.00012334,2]
[329889150,1718797832277,-1498.72627872,0.00012334,2]
[329889151,1718797832287,-250.0,0.0001239,2]
[329889152,1718797832297,-150.0,0.00012411,2]
[329889153,1718797832308,-1750.3210223,0.00012434,2]
[329889154,1718797832318,-1000.0,0.00012439,2]